fUST/lending_fUST_20240916
["ID","MTS","AMOUNT","RATE_DAILY","PERIOD"]
[338258371,1726449046521,-765.53,0.00021917,2]
[338258372,1726449046531,-500.0,0.00021917,2]
[338258373,1726449046541,-374.36904648,0.00021917,2]
[338258374,1726449046551,-500.0,0.00021917,2]
[338258375,1726449046560,-500.0,0.00021917,2]
[338258376,1726449046569,-500.0,0.00021917,2]
[338258377,1726449046578,-500.0,0.00021917,2]
[338258378,1726449046588,-500.0,0.00021917,2]
[338258379,1726449046598,-500.0,0.00021917,2]
[338258380,1726449046607,-633.82,0.00021917,2]
[338258381,1726449046617,-348.12911737,0.00021917,2]
[338258382,1726449046626,-1930.18,0.00021917,2]
[338258383,1726449046637,-500.0,0.00021917,2]
[338258384,1726449046646,-500.0,0.00021917,2]
[338258385,1726449046655,-393.132732,0.00021917,2]
[338258386,1726449046665,-393.132732,0.00021917,2]
[338258387,1726449046675,-393.132732,0.00021917,2]
[338258388,1726449046686,-500.0,0.00021917,2]
[338258389,1726449046696,-1889.83,0.00021917,2]
[338258390,1726449046705,-393.132732,0.00021917,2]
[338258391,1726449046715,-393.132732,0.00021917,2]
[338258392,1726449046724,-393.132742,0.00021917,2]
[338258393,1726449046734,-502.62114628,0.00021917,2]
[338258394,1726449046743,-500.0,0.00021917,2]
[338258395,1726449046754,-500.0,0.00021917,2]
[338258396,1726449046763,-633.79,0.00021917,2]
[338258397,1726449046773,-500.0,0.00021917,2]
[338258398,1726449046783,-500.0,0.00021917,2]
[338258399,1726449046792,-500.0,0.00021917,2]
[338258400,1726449046802,-500.0,0.00021917,2]
[338258401,1726449046811,-500.0,0.00021917,2]
[338258402,1726449046821,-500.0,0.00021917,2]
[338258403,1726449046830,-2403.48,0.00021917,2]
[338258404,1726449046839,-500.0,0.00021917,2]
[338258405,1726449046850,-500.0,0.00021917,2]
[338258406,1726449046859,-500.0,0.00021917,2]
[338258407,1726449046868,-500.0,0.00021917,2]
[338258408,1726449046877,-745.82,0.00021917,2]
[338258409,1726449046888,-500.0,0.00021917,2]
[338258410,1726449046898,-500.0,0.00021917,2]
[338258411,1726449046908,-761.52,0.00021917,2]
[338258412,1726449046917,-500.0,0.00021917,2]
[338258413,1726449046927,-500.0,0.00021917,2]
[338258414,1726449046936,-500.0,0.00021917,2]
[338258415,1726449046946,-501.30655151,0.00021917,2]
[338258416,1726449046955,-4167.78,0.00021917,2]
[338258417,1726449046965,-500.0,0.00021917,2]
[338258418,1726449046974,-790.48,0.00021917,2]
[338258419,1726449046983,-502.27513259,0.00021917,2]
[338258420,1726449046992,-500.0,0.00021917,2]
[338258421,1726449047001,-500.0,0.00021917,2]
[338258422,1726449047011,-500.0,0.00021917,2]
[338258423,1726449047020,-500.71304582,0.00021917,2]
[338258424,1726449047029,-500.0,0.00021917,2]
[338258425,1726449047041,-500.0,0.00021917,2]
[338258426,1726449047051,-1328.02,0.00021917,2]
[338258427,1726449047060,-500.0,0.00021917,2]
[338258428,1726449047069,-500.0,0.00021917,2]
[338258429,1726449047079,-500.0,0.00021917,2]
[338258430,1726449047089,-1692.06,0.00021917,2]
[338258431,1726449047098,-1484.89,0.00021917,2]
[338258432,1726449047107,-491.1639294,0.00021917,2]
[338258433,1726449047119,-500.0,0.00021917,2]
[338258434,1726449047128,-500.0,0.00021917,2]
[338258435,1726449047140,-895.07,0.00021917,2]
[338258436,1726449047150,-500.0,0.00021917,2]
[338258437,1726449047159,-1947.52,0.00021917,2]
[338258438,1726449047168,-500.0,0.00021917,2]
[338258439,1726449047177,-1285.59,0.00021917,2]
[338258440,1726449047187,-500.0,0.00021917,2]
[338258441,1726449047197,-500.0,0.00021917,2]
[338258442,1726449047206,-650.71,0.00021917,2]
[338258443,1726449047215,-500.0,0.00021917,2]
[338258444,1726449047224,-500.0,0.00021917,2]
[338258445,1726449047234,-500.0,0.00021917,2]
[338258446,1726449047243,-500.0,0.00021917,2]
[338258447,1726449047252,-500.0,0.00021917,2]
[338258448,1726449047262,-500.0,0.00021917,2]
[338258449,1726449047271,-500.0,0.00021917,2]
[338258450,1726449047280,-500.0,0.00021917,2]
[338258451,1726449047289,-500.0,0.00021917,2]
[338258452,1726449047299,-1460.26,0.00021917,2]
[338258453,1726449047307,-500.0,0.00021917,2]
[338258454,1726449047317,-500.0,0.00021917,2]
[338258455,1726449047326,-500.0,0.00021917,2]
[338258456,1726449047335,-500.0,0.00021917,2]
[338258457,1726449047344,-926.96,0.00021917,2]
[338258458,1726449047353,-500.0,0.00021917,2]
[338258459,1726449047362,-500.0,0.00021917,2]
[338258460,1726449047371,-501.40600648,0.00021917,2]
[338258461,1726449047380,-500.0,0.00021917,2]
[338258462,1726449047392,-500.0,0.00021917,2]
[338258463,1726449047401,-500.0,0.00021917,2]
[338258464,1726449047410,-500.0,0.00021917,2]
[338258465,1726449047420,-830.13,0.00021917,2]
[338258466,1726449047429,-500.0,0.00021917,2]
[338258467,1726449047438,-500.0,0.00021917,2]
[338258468,1726449047447,-3107.36,0.00021917,2]
[338258469,1726449047457,-500.0,0.00021917,2]
[338258470,1726449047466,-500.0,0.00021917,2]
[338258471,1726449047475,-500.0,0.00021917,2]
[338258472,1726449047484,-500.0,0.00021917,2]
[338258473,1726449047494,-523.1304693,0.00021917,2]
[338258474,1726449047503,-500.0,0.00021917,2]
[338258475,1726449047512,-619.74,0.00021917,2]
[338258476,1726449047521,-2643.76,0.00021917,2]
[338258477,1726449047531,-500.0,0.00021917,2]
[338258478,1726449047540,-500.0,0.00021917,2]
[338258479,1726449047548,-2073.87,0.00021917,2]
[338258480,1726449047558,-500.0,0.00021917,2]
[338258481,1726449047567,-500.0,0.00021917,2]
[338258482,1726449047576,-847.56,0.00021917,2]
[338258483,1726449047585,-500.0,0.00021917,2]
[338258484,1726449047594,-500.0,0.00021917,2]
[338258485,1726449047603,-4552.35,0.00021917,2]
[338258486,1726449047612,-500.0,0.00021917,2]
[338258487,1726449047621,-500.0,0.00021917,2]
[338258488,1726449047630,-500.0,0.00021917,2]
[338258489,1726449047641,-500.0,0.00021917,2]
[338258490,1726449047650,-500.0,0.00021917,2]
[338258491,1726449047660,-500.0,0.00021917,2]
[338258492,1726449047669,-600.89222253,0.00021917,2]
[338258493,1726449047678,-500.0,0.00021917,2]
[338258494,1726449047688,-500.0,0.00021917,2]
[338258495,1726449047697,-500.0,0.00021917,2]
[338258496,1726449047706,-501.40126471,0.00021917,2]
[338258497,1726449047715,-500.0,0.00021917,2]
[338258498,1726449047724,-500.0,0.00021917,2]
[338258499,1726449047733,-565.45,0.00021917,2]
[338258500,1726449047743,-1536.13,0.00021917,2]
[338258501,1726449047752,-500.0,0.00021917,2]
[338258502,1726449047761,-165.26344774,0.00021917,2]
[338258503,1726449047770,-500.0,0.00021917,2]
[338258504,1726449047779,-500.0,0.00021917,2]
[338258505,1726449047789,-1103.49,0.00021917,2]
[338258506,1726449047798,-500.0,0.00021917,2]
[338258507,1726449047807,-500.0,0.00021917,2]
[338258508,1726449047816,-631.59,0.00021917,2]
[338258509,1726449047825,-500.0,0.00021917,2]
[338258510,1726449047835,-638.0,0.00021917,2]
[338258511,1726449047844,-818.08,0.00021917,2]
[338258512,1726449047853,-500.0,0.00021917,2]
[338258513,1726449047862,-500.0,0.00021917,2]
[338258514,1726449047871,-480.26287783,0.00021917,2]
[338258515,1726449047881,-500.0,0.00021917,2]
[338258516,1726449047891,-2749.7,0.00021917,2]
[338258517,1726449047901,-600.15,0.00021917,2]
[338258518,1726449047911,-500.0,0.00021917,2]
[338258519,1726449047920,-1674.25,0.00021917,2]
[338258520,1726449047929,-500.0,0.00021917,2]
[338258521,1726449047938,-500.0,0.00021917,2]
[338258522,1726449047947,-804.0,0.00021917,2]
[338258523,1726449047956,-486.0,0.00021917,2]
[338258524,1726449047966,-2672.43,0.00021917,2]
[338258525,1726449047975,-729.31,0.00021917,2]
[338258526,1726449047985,-500.0,0.00021917,2]
[338258527,1726449047994,-500.0,0.00021917,2]
[338258528,1726449048003,-1540.2,0.00021917,2]
[338258529,1726449048013,-500.0,0.00021917,2]
[338258530,1726449048023,-1160.65,0.00021917,2]
[338258531,1726449048034,-893.24,0.00021917,2]
[338258532,1726449048044,-500.0,0.00021917,2]
[338258533,1726449048053,-753.69,0.00021917,2]
[338258534,1726449048062,-500.0,0.00021917,2]
[338258535,1726449048071,-1182.01,0.00021917,2]
[338258536,1726449048081,-500.0,0.00021917,2]
[338258537,1726449048090,-500.0,0.00021917,2]
[338258538,1726449048099,-970.91,0.00021917,2]
[338258539,1726449048108,-2204.72,0.00021917,2]
[338258540,1726449048117,-500.0,0.00021917,2]
[338258541,1726449048127,-506.9170292,0.00021917,2]
[338258542,1726449048137,-698.31,0.00021917,2]
[338258543,1726449048146,-4023.55,0.00021917,2]
[338258544,1726449048155,-5120.06,0.00021917,2]
[338258545,1726449048165,-607.26,0.00021917,2]
[338258546,1726449048174,-501.95879654,0.00021917,2]
[338258547,1726449048184,-712.93,0.00021917,2]
[338258548,1726449048193,-1635.45,0.00021917,2]
[338258549,1726449048203,-500.0,0.00021917,2]
[338258550,1726449048212,-500.0,0.00021917,2]
[338258551,1726449048221,-500.0,0.00021917,2]
[338258552,1726449048230,-897.51824271,0.00021917,2]
[338258556,1726449953120,-160.0,0.00020009,3]
[338258557,1726449953142,-300.0,0.00020302,2]
[338258558,1726449953164,-14.80304847,0.00020302,2]
[338258559,1726450046100,-300.0,0.00020302,2]
[338258560,1726450046122,-300.0,0.00020302,2]
[338258561,1726450046142,-141.42189689,0.00020303,2]
[338258595,1726450232602,-292.775,0.00020302,2]
[338258596,1726450232614,-7.225,0.00020302,2]
[338258597,1726450232623,-269.45611885,0.00020302,2]
[338258605,1726450238933,-30.54388115,0.00020302,2]
[338258606,1726450238943,-24758.57810311,0.00020303,2]
[338258607,1726450238953,-160.0,0.00020604,4]
[338258608,1726450238964,-159.494368,0.00020779,2]
[338258609,1726450238973,-159.494368,0.00020786,2]
[338258610,1726450238983,-159.494368,0.00020793,2]
[338258611,1726450238992,-159.494368,0.000208,2]
[338258612,1726450239007,-159.494368,0.00020807,2]
[338258613,1726450239018,-159.494368,0.00020813,2]
[338258614,1726450239028,-159.494368,0.0002082,2]
[338258615,1726450239037,-159.494368,0.00020827,2]
[338258616,1726450239047,-159.494368,0.00020834,2]
[338258617,1726450239056,-159.494368,0.00020841,2]
[338258618,1726450239066,-159.494368,0.00020848,2]
[338258619,1726450239076,-159.494368,0.00020855,2]
[338258620,1726450239085,-159.494368,0.00020862,2]
[338258621,1726450239096,-159.494368,0.00020869,2]
[338258622,1726450239106,-159.494368,0.00020876,2]
[338258623,1726450239115,-159.494368,0.00020883,2]
[338258624,1726450239124,-160.0,0.00021198,5]
[338258625,1726450239134,-160.81777196,0.00021198,5]
[338258626,1726450239145,-482.32257654,0.00021697,2]
[338258627,1726450239156,-150.0,0.00021705,2]
[338258628,1726450239167,-524.0,0.00021705,2]
[338258629,1726450239177,-164.0,0.00021705,2]
[338258630,1726450239187,-169.9624532,0.00021797,2]
[338258631,1726450239196,-169.9624532,0.00021802,2]
[338258632,1726450239206,-1000.0,0.00021807,2]
[338258633,1726450239216,-169.9624532,0.00021807,2]
[338258634,1726450239227,-169.9624532,0.00021812,2]
[338258635,1726450239238,-2213.32968845,0.00021817,2]
[338258636,1726450239248,-3000.0,0.00021817,2]
[338258637,1726450239259,-1229.05978884,0.00021817,2]
[338258638,1726450239269,-169.9624532,0.00021817,2]
[338258639,1726450239278,-674.23,0.00021887,3]
[338258640,1726450239289,-63292.3083699,0.00021897,3]
[338258641,1726450239301,-260.04297919,0.00021897,3]
[338258642,1726450239315,-7535.34435353,0.00021897,3]
[338258643,1726450239327,-449.47,0.00021897,3]
[338258644,1726450239336,-224.73,0.00021897,3]
[338258645,1726450239572,-150.112233,0.000219,3]
[338258646,1726450239650,-150.112233,0.000219,4]
[338258647,1726450239660,-150.112233,0.000219,5]
[338258648,1726450239670,-150.112233,0.000219,2]
[338258649,1726450239680,-150.112234,0.000219,3]
[338258650,1726450239691,-150.112233,0.000219,3]
[338258651,1726450239700,-150.112233,0.000219,2]
[338258652,1726450239709,-150.112233,0.000219,5]
[338258653,1726450239719,-150.112233,0.000219,2]
[338258654,1726450239729,-198.600356,0.000219,3]
[338258655,1726450239739,-500.0,0.00021906,2]
[338258656,1726450239749,-500.0,0.00021906,2]
[338258657,1726450239758,-370.23604389,0.00021906,2]
[338258658,1726450239768,-386.51454531,0.00021906,2]
[338258659,1726450239779,-500.0,0.00021906,2]
[338258660,1726450239788,-500.0,0.00021906,2]
[338258661,1726450239798,-500.0,0.00021906,2]
[338258662,1726450239808,-284.69053985,0.00021906,2]
[338258663,1726450239817,-94938.4625549,0.00021907,3]
[338258664,1726450239826,-11693.0809991,0.00021907,3]
[338258665,1726450239836,-151.0,0.00021907,2]
[338258666,1726450239845,-151.0,0.00021907,2]
[338258667,1726450239860,-151.0,0.00021907,2]
[338258668,1726450239869,-151.0,0.00021907,2]
[338258669,1726450239879,-151.0,0.00021907,2]
[338258670,1726450239889,-153.061054,0.00021907,2]
[338258671,1726450239899,-202.60543783,0.00021907,2]
[338258672,1726450239908,-151.0,0.00021907,2]
[338258673,1726450239918,-191.445838,0.00021907,2]
[338258674,1726450239928,-151.0,0.00021907,2]
[338258675,1726450239938,-191.445838,0.00021907,2]
[338258676,1726450239947,-151.0,0.00021907,2]
[338258677,1726450239956,-151.0,0.00021907,2]
[338258678,1726450239966,-151.0,0.00021907,2]
[338258679,1726450239975,-151.0,0.00021907,2]
[338258680,1726450239984,-151.0,0.00021907,2]
[338258681,1726450239994,-463.985408,0.00021907,2]
[338258682,1726450240003,-463.985408,0.00021907,2]
[338258683,1726450240012,-151.0,0.00021907,2]
[338258684,1726450240023,-151.0,0.00021907,2]
[338258685,1726450240032,-151.0,0.00021907,2]
[338258686,1726450240042,-151.0,0.00021907,2]
[338258687,1726450240051,-151.0,0.00021907,2]
[338258688,1726450240060,-151.0,0.00021907,2]
[338258689,1726450240070,-151.0,0.00021907,2]
[338258690,1726450240079,-151.0,0.00021907,2]
[338258691,1726450240088,-151.0,0.00021907,2]
[338258692,1726450240098,-151.0,0.00021907,2]
[338258693,1726450240112,-382.66728167,0.00021916,2]
[338258694,1726450240121,-500.0,0.00021916,2]
[338258695,1726450240131,-500.0,0.00021916,2]
[338258696,1726450240140,-583.6558192,0.00021916,2]
[338258697,1726450240149,-354.16551059,0.00021916,2]
[338258698,1726450240158,-226.1007698,0.00021916,2]
[338258699,1726450240167,-296.59803525,0.00021916,2]
[338258700,1726450240176,-500.0,0.00021916,2]
[338258701,1726450240186,-500.0,0.00021916,2]
[338258702,1726450240195,-500.0,0.00021916,2]
[338258703,1726450240205,-500.0,0.00021916,2]
[338258704,1726450240214,-176.1156158,0.00021916,2]
[338258705,1726450240224,-160.39096386,0.00021916,2]
[338258706,1726450240233,-33756.76651324,0.00021917,5]
[338258707,1726450240242,-185.99071432,0.00021917,5]
[338258708,1726450240252,-500.0,0.00021917,2]
[338258709,1726450240262,-500.0,0.00021917,2]
[338258710,1726450240271,-500.0,0.00021917,2]
[338258711,1726450240281,-501.5796629,0.00021917,2]
[338258712,1726450240290,-500.0,0.00021917,2]
[338258713,1726450240299,-500.53256308,0.00021917,2]
[338258714,1726450240309,-500.0,0.00021917,2]
[338258715,1726450240318,-500.0,0.00021917,2]
[338258716,1726450240327,-500.0,0.00021917,2]
[338258717,1726450240336,-500.0,0.00021917,2]
[338258719,1726450240346,-500.4735399,0.00021917,2]
[338258720,1726450240357,-500.0,0.00021917,2]
[338258721,1726450240367,-500.0,0.00021917,2]
[338258722,1726450240376,-398.1407654,0.00021917,2]
[338258723,1726450240385,-500.0,0.00021917,2]
[338258724,1726450240394,-500.0,0.00021917,2]
[338258725,1726450240403,-566.97191532,0.00021917,2]
[338258726,1726450240412,-500.0,0.00021917,2]
[338258727,1726450240422,-500.0,0.00021917,2]
[338258728,1726450240431,-514.373297,0.00021917,2]
[338258729,1726450240445,-641.03323736,0.00021917,2]
[338258730,1726450240454,-500.0,0.00021917,2]
[338258731,1726450240464,-622.21,0.00021917,2]
[338258733,1726450240474,-500.0,0.00021917,2]
[338258735,1726450240485,-395.39390566,0.00021917,2]
[338258737,1726450240495,-534.56,0.00021917,2]
[338258738,1726450240504,-500.0,0.00021917,2]
[338258739,1726450240517,-761.76,0.00021917,2]
[338258740,1726450240527,-500.0,0.00021917,2]
[338258741,1726450240536,-500.0,0.00021917,2]
[338258742,1726450240545,-500.0,0.00021917,2]
[338258743,1726450240555,-670.58,0.00021917,2]
[338258744,1726450240564,-500.0,0.00021917,2]
[338258745,1726450240574,-506.71,0.00021917,2]
[338258746,1726450240583,-500.0,0.00021917,2]
[338258748,1726450240593,-500.0,0.00021917,2]
[338258749,1726450240604,-500.0,0.00021917,2]
[338258750,1726450240613,-500.0,0.00021917,2]
[338258751,1726450240623,-500.0,0.00021917,2]
[338258752,1726450240632,-500.0,0.00021917,2]
[338258753,1726450240642,-500.0,0.00021917,2]
[338258754,1726450240652,-500.0,0.00021917,2]
[338258755,1726450240661,-500.0,0.00021917,2]
[338258756,1726450240670,-500.0,0.00021917,2]
[338258757,1726450240679,-940.98,0.00021917,2]
[338258758,1726450240688,-500.0,0.00021917,2]
[338258759,1726450240697,-500.0,0.00021917,2]
[338258760,1726450240706,-1536.44,0.00021917,2]
[338258761,1726450240715,-500.0,0.00021917,2]
[338258762,1726450240724,-500.0,0.00021917,2]
[338258763,1726450240734,-500.0,0.00021917,2]
[338258764,1726450240743,-500.0,0.00021917,2]
[338258765,1726450240753,-500.0,0.00021917,2]
[338258766,1726450240762,-500.0,0.00021917,2]
[338258767,1726450240772,-619.28,0.00021917,2]
[338258768,1726450240782,-500.0,0.00021917,2]
[338258769,1726450240791,-500.0,0.00021917,2]
[338258770,1726450240800,-500.0,0.00021917,2]
[338258771,1726450240809,-500.0,0.00021917,2]
[338258772,1726450240818,-504.46772534,0.00021917,2]
[338258773,1726450240828,-500.0,0.00021917,2]
[338258774,1726450240837,-500.0,0.00021917,2]
[338258775,1726450240847,-200.0,0.00021917,2]
[338258776,1726450240857,-500.0,0.00021917,2]
[338258777,1726450240866,-573.09,0.00021917,2]
[338258778,1726450240876,-500.0,0.00021917,2]
[338258779,1726450240886,-500.0,0.00021917,2]
[338258780,1726450240895,-545.9,0.00021917,2]
[338258781,1726450240904,-1323.21,0.00021917,2]
[338258782,1726450240913,-572.29,0.00021917,2]
[338258783,1726450240923,-500.0,0.00021917,2]
[338258784,1726450240932,-500.0,0.00021917,2]
[338258785,1726450240942,-500.0,0.00021917,2]
[338258786,1726450240952,-500.0,0.00021917,2]
[338258787,1726450240961,-500.0,0.00021917,2]
[338258788,1726450240971,-202.55748137,0.00021917,2]
[338258789,1726450240981,-500.0,0.00021917,2]
[338258790,1726450240990,-290.69328547,0.00021917,2]
[338258791,1726450240999,-591.26914721,0.00021917,2]
[338258792,1726450241009,-500.0,0.00021917,2]
[338258793,1726450241018,-500.0,0.00021917,2]
[338258794,1726450241027,-500.0,0.00021917,2]
[338258795,1726450241037,-500.0,0.00021917,2]
[338258796,1726450241046,-500.0,0.00021917,2]
[338258797,1726450241056,-500.0,0.00021917,2]
[338258798,1726450241065,-500.0,0.00021917,2]
[338258799,1726450241074,-865.88,0.00021917,2]
[338258800,1726450241083,-500.0,0.00021917,2]
[338258801,1726450241092,-500.0,0.00021917,2]
[338258802,1726450241101,-770.56,0.00021917,2]
[338258803,1726450241112,-500.0,0.00021917,2]
[338258804,1726450241121,-1368.86,0.00021917,2]
[338258805,1726450241130,-500.0,0.00021917,2]
[338258806,1726450241139,-500.0,0.00021917,2]
[338258807,1726450241149,-1904.61,0.00021917,2]
[338258808,1726450241159,-500.0,0.00021917,2]
[338258809,1726450241168,-500.0,0.00021917,2]
[338258810,1726450241177,-748.82,0.00021917,2]
[338258811,1726450241187,-757.54,0.00021917,2]
[338258812,1726450241198,-500.0,0.00021917,2]
[338258813,1726450241207,-500.0,0.00021917,2]
[338258814,1726450241217,-284.68193741,0.00021917,2]
[338258815,1726450241226,-500.0,0.00021917,2]
[338258816,1726450241235,-500.0,0.00021917,2]
[338258817,1726450241244,-500.0,0.00021917,2]
[338258818,1726450241254,-500.0,0.00021917,2]
[338258819,1726450241264,-500.0,0.00021917,2]
[338258820,1726450241273,-500.0,0.00021917,2]
[338258821,1726450241282,-500.0,0.00021917,2]
[338258822,1726450241290,-500.0,0.00021917,2]
[338258823,1726450241298,-1232.02,0.00021917,2]
[338258824,1726450241309,-500.0,0.00021917,2]
[338258825,1726450241319,-500.0,0.00021917,2]
[338258826,1726450241328,-500.0,0.00021917,2]
[338258827,1726450241337,-500.0,0.00021917,2]
[338258828,1726450241347,-500.0,0.00021917,2]
[338258829,1726450241358,-500.0,0.00021917,2]
[338258830,1726450241368,-500.0,0.00021917,2]
[338258831,1726450241377,-500.0,0.00021917,2]
[338258832,1726450241387,-857.77,0.00021917,2]
[338258833,1726450241396,-500.0,0.00021917,2]
[338258834,1726450241405,-408.25363019,0.00021917,2]
[338258835,1726450241414,-500.0,0.00021917,2]
[338258836,1726450241423,-500.0,0.00021917,2]
[338258837,1726450241434,-500.0,0.00021917,2]
[338258838,1726450241451,-500.0,0.00021917,2]
[338258839,1726450241462,-399.71600553,0.00021917,2]
[338258840,1726450241471,-500.0,0.00021917,2]
[338258841,1726450241480,-620.18791227,0.00021917,2]
[338258842,1726450241490,-500.0,0.00021917,2]
[338258843,1726450241500,-500.0,0.00021917,2]
[338258844,1726450241510,-500.0,0.00021917,2]
[338258845,1726450241520,-500.0,0.00021917,2]
[338258846,1726450241531,-500.0,0.00021917,2]
[338258847,1726450241541,-500.0,0.00021917,2]
[338258848,1726450241550,-500.0,0.00021917,2]
[338258849,1726450241559,-500.0,0.00021917,2]
[338258850,1726450241569,-593.92,0.00021917,2]
[338258851,1726450241578,-500.0,0.00021917,2]
[338258852,1726450241588,-500.0,0.00021917,2]
[338258853,1726450241597,-1057.52,0.00021917,2]
[338258854,1726450241610,-500.0,0.00021917,2]
[338258855,1726450241620,-500.0,0.00021917,2]
[338258856,1726450241628,-698.73,0.00021917,2]
[338258857,1726450241638,-500.0,0.00021917,2]
[338258858,1726450241647,-523.79340189,0.00021917,2]
[338258859,1726450241657,-415.55800318,0.00021917,2]
[338258860,1726450241666,-763.33,0.00021917,2]
[338258861,1726450241675,-541.89,0.00021917,2]
[338258862,1726450241684,-500.0,0.00021917,2]
[338258863,1726450241693,-500.0,0.00021917,2]
[338258864,1726450241702,-605.27,0.00021917,2]
[338258865,1726450241712,-1112.29,0.00021917,2]
[338258866,1726450241721,-2635.13,0.00021917,2]
[338258867,1726450241730,-500.0,0.00021917,2]
[338258868,1726450241739,-500.0,0.00021917,2]
[338258869,1726450241749,-500.0,0.00021917,2]
[338258870,1726450241758,-381.48499014,0.00021917,2]
[338258871,1726450241768,-226.514046,0.00021917,2]
[338258872,1726450241778,-930.45,0.00021917,2]
[338258873,1726450241787,-500.0,0.00021917,2]
[338258874,1726450241797,-1888.29,0.00021917,2]
[338258875,1726450241806,-500.0,0.00021917,2]
[338258876,1726450241815,-500.0,0.00021917,2]
[338258877,1726450241824,-500.0,0.00021917,2]
[338258878,1726450241833,-581.96,0.00021917,2]
[338258879,1726450241843,-500.0,0.00021917,2]
[338258880,1726450241852,-604.59,0.00021917,2]
[338258881,1726450241865,-500.0,0.00021917,2]
[338258882,1726450241874,-500.0,0.00021917,2]
[338258883,1726450241883,-654.18,0.00021917,2]
[338258884,1726450241892,-1589.83,0.00021917,2]
[338258885,1726450241901,-889.38,0.00021917,2]
[338258886,1726450241910,-500.0,0.00021917,2]
[338258887,1726450241920,-686.74,0.00021917,2]
[338258888,1726450241929,-500.0,0.00021917,2]
[338258889,1726450241938,-500.0,0.00021917,2]
[338258890,1726450241947,-500.0,0.00021917,2]
[338258891,1726450241957,-565.86,0.00021917,2]
[338258892,1726450241967,-500.0,0.00021917,2]
[338258893,1726450241977,-1515.38,0.00021917,2]
[338258894,1726450241986,-914.17,0.00021917,2]
[338258895,1726450241996,-500.0,0.00021917,2]
[338258896,1726450242005,-645.74,0.00021917,2]
[338258897,1726450242015,-500.0,0.00021917,2]
[338258898,1726450242024,-1598.03,0.00021917,2]
[338258899,1726450242034,-871.64,0.00021917,2]
[338258900,1726450242043,-1197.33,0.00021917,2]
[338258901,1726450242052,-1796.57,0.00021917,2]
[338258902,1726450242061,-558.41777291,0.00021917,2]
[338258903,1726450242070,-731.37,0.00021917,2]
[338258904,1726450242080,-500.0,0.00021917,2]
[338258905,1726450242089,-1462.03,0.00021917,2]
[338258906,1726450242098,-500.0,0.00021917,2]
[338258907,1726450242110,-500.0,0.00021917,2]
[338258908,1726450242120,-1001.1474288,0.00021917,5]
[338258909,1726450242129,-520.9,0.00021917,2]
[338258910,1726450242138,-586.11,0.00021917,2]
[338258911,1726450242148,-644.12,0.00021917,2]
[338258912,1726450242157,-500.0,0.00021917,2]
[338258913,1726450242166,-970.55,0.00021917,2]
[338258914,1726450242176,-196.566366,0.00021917,2]
[338258915,1726450242186,-196.566366,0.00021917,2]
[338258916,1726450242195,-196.566366,0.00021917,2]
[338258917,1726450242204,-196.566366,0.00021917,2]
[338258918,1726450242214,-196.566366,0.00021917,2]